bitfinex-derivatives/quotes_ETHF0:USTF0_20251119
["timestamp","ask_amount","ask_price","bid_price","bid_amount"]
[1763574545632,3.76295,2920.6,2919.9,0.00513821]
[1763574545833,0.55516,2920.5,2919.9,0.00513821]
[1763574546036,3.76296,2920.5,2919.9,0.00513821]
[1763574547231,1.3952,2920.0,2919.9,0.00513821]
[1763574547541,0.55527,2919.9,2919.1,0.00432274]
[1763574547724,3.2078,2919.7,2919.1,0.00432274]
[1763574547925,3.2078,2920.3,2919.6,3.2078]
[1763574548135,0.55517,2920.5,2919.5,3.2078]
[1763574548337,0.55517,2920.5,2919.7,0.00513821]
[1763574548524,0.55517,2920.5,2919.8,3.2078]
[1763574548724,0.55517,2920.5,2920.2,3.2078]
[1763574548927,0.55517,2920.5,2919.9,3.2078]
[1763574549130,0.55517,2920.5,2920.2,3.2078]
[1763574549527,0.00510795,2920.7,2920.2,3.2078]
[1763574549836,0.00510795,2920.7,2920.6,3.2078]
[1763574550029,0.00346642,2921.2,2920.6,3.2078]
[1763574550230,0.00346642,2921.2,2921.0,3.2078]
[1763574551230,7.98924,2921.3,2921.1,4.52557287]
[1763574551438,2.59618946,2924.0,2921.1,4.52557287]
[1763574551439,3.76232,2923.9,2921.3,3.2078]
[1763574551739,3.76232,2923.9,2921.2,14.90952081]
[1763574551740,0.00513821,2923.2,2922.8,3.2078]
[1763574551942,0.00513821,2923.2,2923.1,3.2078]
[1763574552143,0.00404885,2923.2,2923.1,3.21191913]
[1763574553539,1.40438706,2923.2,2923.1,0.00411913]
[1763574553840,1.40438706,2923.2,2921.1,0.55503]
[1763574553841,0.55469,2923.0,2922.2,3.20266179]
[1763574554043,1.39924885,2923.2,2921.0,12.34]
[1763574554044,1.3952,2922.4,2921.8,3.2078]
[1763574554237,1.95001,2922.4,2921.8,3.2078]
[1763574554442,1.95001,2922.4,2921.0,12.34]
[1763574554443,1.95001,2922.4,2922.2,3.2078]
[1763574554941,1.95001,2922.4,2922.2,3.21105563]
[1763574555138,1.3952,2922.4,2922.2,0.00325563]
[1763574555334,7.3952,2922.4,2922.0,0.00513821]
[1763574555541,1.3952,2922.4,2922.0,0.00513821]
[1763574555746,3.2078,2922.3,2922.0,0.00513821]
[1763574556043,0.55484,2922.2,2921.4,3.2078]
[1763574556439,0.55484,2922.2,2921.4,3.2114721]
[1763574556846,3.2078,2922.0,2921.5,0.00513821]
[1763574557343,1.3952,2921.6,2921.5,0.00513821]
[1763574558242,1.3952,2921.6,2920.7,3.2078]
[1763574558243,0.55501,2921.3,2920.7,3.2078]
[1763574558754,1.3952,2920.8,2920.7,3.2078]
[1763574559050,0.55504,2921.1,2920.7,3.2078]
[1763574559251,0.55917534,2921.1,2920.7,3.21136622]
[1763574559542,0.00513821,2921.8,2921.0,3.2078]
[1763574559738,0.00513821,2921.8,2921.6,3.2078]
[1763574559739,3.821e-05,2921.8,2921.6,3.2078]
[1763574560448,3.821e-05,2921.8,2921.6,9.2078]
[1763574560642,2.954e-05,2921.8,2921.6,9.2078]
[1763574561646,2.954e-05,2921.8,2921.6,3.2078]
[1763574563648,0.00066775,2922.0,2921.7,6.0]
[1763574563843,0.00066775,2922.0,2921.9,3.2078]
[1763574564554,3.2078,2923.7,2922.1,0.55484]
[1763574564749,3.2078,2923.7,2923.2,3.2078]
[1763574565043,0.55459,2923.5,2923.2,3.2078]
[1763574565251,4.603,2924.0,2923.2,3.2078]
[1763574565447,12.32775873,2923.6,2923.2,3.21039207]
[1763574566448,0.00310014,2923.3,2923.2,3.21039207]
[1763574567156,12.32775873,2923.6,2923.2,3.21039207]
[1763574567346,12.32775873,2923.6,2923.5,3.2078]
[1763574567647,12.88232873,2923.6,2923.2,3.21039207]
[1763574567949,3.2078,2923.5,2923.2,0.00259207]
[1763574568153,12.88232873,2923.6,2923.2,0.00259207]
[1763574568352,12.32775873,2923.6,2923.4,3.2078]
[1763574569544,0.00310014,2923.5,2923.4,3.2078]
[1763574569944,0.00310014,2923.5,2923.2,0.00259207]
[1763574570150,0.55467,2923.1,2922.5,3.2078]
[1763574570352,3.2078,2923.1,2922.0,3.2078]
[1763574570551,3.2078,2923.1,2921.5,0.27820814]
[1763574570552,0.00310014,2922.9,2922.4,3.2078]
[1763574570847,0.00310014,2922.8,2922.4,3.2078]
[1763574571051,0.55467,2923.1,2922.4,3.21188583]
[1763574571252,3.76247,2923.1,2922.5,0.00513821]
[1763574571460,3.2078,2922.8,2922.5,0.00513821]
[1763574571846,0.00310014,2922.8,2922.5,3.21293821]
[1763574572052,0.00310014,2922.8,2922.5,0.00513821]
[1763574572244,0.00310014,2922.8,2922.5,3.821e-05]
[1763574572245,3.76256,2922.6,2922.5,3.821e-05]
[1763574572456,3.76256,2922.6,2922.4,0.00408583]
[1763574572650,0.00310014,2922.5,2922.4,0.00408583]
[1763574573144,0.55788014,2922.5,2922.4,0.00408583]
[1763574574057,0.00310014,2922.5,2922.4,0.00408583]
[1763574576260,3.21090014,2922.5,2922.4,0.00408583]
[1763574576558,3.21090014,2922.5,2921.2,0.2793806]
[1763574576559,0.55486,2922.1,2920.8,3.2078]
[1763574576758,3.2078,2921.8,2920.8,3.2078]
[1763574576957,3.21090014,2921.8,2920.8,3.2078]
[1763574577158,3.2078,2921.5,2920.9,0.1165]
[1763574577459,3.2078,2921.1,2920.9,0.11902967]
[1763574577755,3.2078,2921.1,2919.2,14.73467312]
[1763574577756,1.9382,2920.8,2919.6,15.54847]
[1763574577962,3.2078,2920.5,2919.6,15.54847]
[1763574578262,3.2078,2920.2,2919.6,15.54847]
[1763574578759,5.146,2920.8,2919.9,3.2078]
[1763574579562,5.146,2920.8,2920.0,0.0041]
[1763574579762,3.2078,2920.4,2920.0,0.0041]
[1763574581960,1.3831,2920.0,2919.6,0.00792222]
[1763574582153,3.76311,2919.7,2918.0,3.2078]
[1763574582358,3.76317,2919.4,2918.0,3.2078]
[1763574582557,3.2078,2919.0,2918.0,3.47878222]
[1763574582757,3.2078,2919.6,2918.6,3.2078]
[1763574582957,3.2078,2919.2,2918.6,3.2078]
[1763574583266,3.21578388,2919.2,2918.6,0.00642476]
[1763574583658,0.00798388,2919.2,2918.6,0.00642476]
[1763574584065,0.00798388,2919.2,2918.8,3.2078]
[1763574584564,0.00798388,2919.2,2918.6,0.00642476]
[1763574585269,3.21578388,2919.2,2918.6,0.00642476]
[1763574585462,0.00798388,2919.2,2918.8,3.2078]
[1763574585669,0.00798388,2919.2,2918.6,0.00642476]
[1763574586066,3.76328,2918.8,2918.5,0.0111]
[1763574586266,0.00798388,2919.2,2918.5,0.0111]
[1763574586473,0.00798388,2919.2,2918.7,3.2078]
[1763574586670,0.00798388,2919.2,2918.5,0.0111]
[1763574586863,0.00798388,2919.2,2918.8,3.2078]
[1763574587063,0.00798388,2919.2,2918.8,3.2103776]
[1763574588267,3.2078,2919.8,2919.2,1.486]
[1763574588771,3.76294,2920.6,2919.6,3.2078]
[1763574588969,3.76294,2920.6,2919.9,3.2078]
[1763574589272,0.00513821,2920.5,2919.9,3.2078]
[1763574589669,0.00513821,2920.5,2919.6,3.2078]
[1763574590169,0.00513821,2920.5,2919.9,3.2078]
[1763574590571,0.00513821,2920.5,2919.6,3.2078]
[1763574590767,0.56029821,2920.5,2919.6,3.2078]
[1763574591070,1.3831,2920.0,2919.2,3.2078]
[1763574591270,3.2078,2919.7,2919.2,3.2078]
[1763574591463,3.2078,2919.7,2918.8,3.2103776]
[1763574591871,3.2078,2919.4,2918.8,3.2103776]
[1763574592171,3.2078,2919.7,2918.8,3.2103776]
[1763574592372,3.2078,2919.3,2918.8,3.2103776]
[1763574592570,0.55535,2919.5,2918.8,3.2103776]
[1763574593264,3.2078,2919.6,2918.8,3.2103776]
[1763574593465,3.2078,2919.6,2919.1,3.2078]
[1763574593777,3.2078,2919.6,2918.8,0.0025776]
[1763574594071,3.2078,2919.6,2919.1,3.2078]
[1763574595063,3.2078,2919.6,2919.2,1.486]
[1763574595269,3.2078,2920.1,2919.4,3.2078]
[1763574595670,3.2078,2920.1,2919.2,1.486]
[1763574595971,0.55531,2919.7,2919.1,3.2078]
[1763574596269,0.55531,2919.7,2918.8,0.0025776]
[1763574596473,3.2078,2919.8,2919.0,3.2078]
[1763574596771,3.2078,2919.8,2918.8,0.0025776]
[1763574597165,3.2078,2919.8,2919.0,3.2078]
[1763574597565,3.2078,2919.8,2919.0,4.0605]
[1763574598169,3.2078,2919.8,2919.3,3.2078]
[1763574600268,3.2078,2919.8,2918.8,0.0025776]
[1763574600269,0.55546,2918.9,2918.8,0.0025776]
[1763574600476,3.76326,2918.9,2918.8,0.0025776]
[1763574600776,0.55546,2918.9,2918.8,0.0025776]
[1763574600977,3.2078,2919.3,2918.8,0.0025776]
[1763574601177,1.3831,2919.7,2918.8,0.0025776]
[1763574601374,1.3831,2919.7,2917.3,14.75692312]
[1763574601375,5.09259355,2919.0,2917.6,3.2078]
[1763574601674,5.09259355,2919.0,2916.0,4.605]
[1763574601675,0.55577,2917.4,2916.0,4.605]
[1763574601879,0.55577,2917.4,2916.3,3.2078]
[1763574602177,3.2078,2917.3,2916.6,3.2078]
[1763574602372,3.2078,2917.3,2916.8,1.3972]
[1763574602373,0.00513821,2917.2,2916.8,1.3972]
[1763574603069,3.821e-05,2917.2,2917.1,3.2078]
[1763574603270,0.00240377,2917.3,2916.8,1.3972]
[1763574603468,0.00240377,2917.3,2916.7,3.2078]
[1763574603671,0.00240377,2917.3,2916.8,1.3972]
[1763574604372,0.00754198,2917.3,2917.0,3.2078]
[1763574604572,3.2078,2918.4,2917.0,3.2078]
[1763574604774,3.2078,2918.6,2917.8,3.2078]
[1763574605074,3.2078,2917.9,2916.9,3.2078]
[1763574605273,3.2078,2917.6,2916.8,1.40233821]
[1763574605470,3.2078,2917.3,2916.8,0.00513821]
[1763574605866,0.00513821,2917.5,2916.8,4.61013821]
[1763574606072,3.2078,2917.3,2916.8,1.40233821]
[1763574606280,0.00513821,2917.5,2916.8,1.40233821]
[1763574606483,3.2078,2917.3,2916.8,1.40233821]
[1763574606975,3.2078,2917.3,2916.6,0.00372009]
[1763574607178,0.55593,2916.5,2915.6,3.2078]
[1763574607370,3.2078,2916.3,2915.6,3.2078]
[1763574607684,0.55593,2916.5,2915.6,3.2078]
[1763574607886,3.2078,2916.3,2915.5,1.486]
[1763574608080,3.70949355,2916.9,2915.5,0.00280462]
[1763574608081,3.2078,2915.6,2915.5,0.00280462]
[1763574608282,0.55612,2915.5,2914.4,1.3972]
[1763574608581,0.55612,2915.5,2915.3,3.821e-05]
[1763574608775,3.2078,2915.4,2914.4,4.605]
[1763574608975,3.2078,2915.4,2914.7,15.56904]
[1763574609179,3.2078,2915.7,2915.1,1.3972]
[1763574609480,3.2109158,2915.7,2915.1,1.40007644]
[1763574609677,3.2078,2915.4,2915.1,0.00287644]
[1763574610378,0.0031158,2915.7,2915.2,3.2078]
[1763574610591,0.0031158,2915.7,2915.3,3.2078]
[1763574610774,0.0031158,2915.7,2915.1,1.40007644]
[1763574610974,0.0031158,2915.7,2915.1,0.00287644]
[1763574610975,3.2078,2915.2,2915.1,0.00287644]
[1763574612183,0.0031158,2915.7,2915.1,0.00287644]
[1763574612184,3.2078,2915.6,2915.1,1.40007644]
[1763574612380,3.08570788,2915.4,2914.7,12.36124]
[1763574612582,3.2078,2914.9,2914.7,12.36124]
[1763574612976,3.2078,2915.2,2914.7,12.36124]
[1763574613477,3.2078,2915.5,2914.7,12.36503708]
[1763574613875,3.2078,2915.5,2914.8,3.2078]
[1763574614376,0.0031158,2915.7,2915.1,4.605]
[1763574614575,3.2078,2916.6,2915.4,3.2078]
[1763574614887,3.2078,2916.6,2916.0,1.3972]
[1763574615580,3.2078,2916.6,2916.0,0.00513821]
[1763574615581,3.2078,2916.3,2916.0,0.00513821]
[1763574616676,3.2078,2916.3,2915.1,4.605]
[1763574616877,3.2078,2915.9,2915.1,4.605]
[1763574617081,3.76378,2916.2,2915.1,4.605]
[1763574617380,0.00938456,2916.6,2915.1,4.605]
[1763574617381,3.2078,2915.8,2915.1,1.3972]
[1763574617579,3.2078,2915.8,2915.1,4.605]
[1763574617981,3.2078,2915.8,2915.1,1.3972]
[1763574619383,3.2078,2916.1,2915.3,3.2078]
[1763574619783,3.2078,2916.1,2915.6,3.2078]
[1763574619983,3.2078,2916.4,2915.6,3.2078]
[1763574620585,3.2078,2915.8,2915.1,4.605]
[1763574620987,3.2078,2916.3,2915.4,3.2078]
[1763574621875,3.77308456,2916.6,2915.8,3.2078]
[1763574622276,3.21718456,2916.6,2915.8,3.2078]
[1763574622475,3.21718456,2916.6,2915.1,1.3972]
[1763574622476,3.2078,2916.2,2915.4,3.2078]
[1763574622681,3.2078,2916.2,2915.1,4.605]
[1763574622984,3.2078,2915.8,2915.1,1.3972]
[1763574623385,0.55602,2916.0,2915.3,3.2078]
[1763574624287,3.2078,2915.7,2915.1,1.3972]
[1763574624475,3.2078,2915.4,2914.7,15.57283708]
[1763574624889,0.00938456,2916.6,2914.7,15.57283708]
[1763574624890,3.2078,2915.8,2915.2,1.3972]
[1763574625390,3.2078,2915.8,2914.8,3.2078]
[1763574625788,3.2078,2915.8,2914.7,12.36503708]
[1763574625789,3.2078,2915.1,2914.7,12.36503708]
[1763574626181,3.76399,2915.1,2914.7,12.36503708]
[1763574626382,3.2078,2915.1,2914.7,12.36503708]
[1763574627187,5.59401365,2915.1,2914.7,12.36503708]
[1763574627588,3.2078,2915.7,2915.2,1.4358]
[1763574627890,3.2078,2916.0,2915.3,3.2078]
[1763574628076,0.55599,2916.2,2915.7,3.2078]
[1763574628280,3.2078,2916.3,2915.7,3.2078]
[1763574628487,3.21718456,2916.6,2916.0,3.2078]
[1763574628686,0.00938456,2916.6,2916.3,3.2078]
[1763574629088,0.00938456,2916.6,2916.0,1.4358]
[1763574629385,0.00938456,2916.6,2916.5,3.2078]
[1763574629584,0.55577,2917.3,2916.5,3.2078]
[1763574629786,0.55577,2917.3,2916.9,3.2078]
[1763574629981,0.55577,2917.3,2916.6,3.2078]
[1763574630186,3.2078,2917.7,2916.9,3.2078]
[1763574630382,2.38621365,2917.8,2917.2,3.2078]
[1763574630586,9.37957113,2918.0,2917.7,2.38621365]
[1763574630786,4.462e-05,2918.0,2917.9,3.2078]
[1763574631183,12.3416,2919.4,2917.9,3.2078]
[1763574631380,3.2078,2919.3,2918.5,3.2078]
[1763574631588,12.3416,2919.4,2918.9,3.2078]
[1763574631792,0.00513821,2919.2,2918.9,3.21070334]
[1763574633192,5.2e-06,2919.3,2918.9,3.21070334]
[1763574633391,5.2e-06,2919.3,2919.2,3.2078]
[1763574633703,5.2e-06,2919.3,2918.9,0.00290334]
[1763574634293,3.2078,2919.1,2918.9,0.00290334]
[1763574634594,0.5553952,2919.3,2918.9,0.00290334]
[1763574634794,5.2e-06,2919.3,2918.9,0.00290334]
[1763574635587,5.2e-06,2919.3,2919.0,3.2078]
[1763574635791,5.2e-06,2919.3,2918.9,0.00290334]
[1763574635997,5.2e-06,2919.3,2919.0,3.2078]
[1763574636198,5.2e-06,2919.3,2919.1,3.503]
[1763574636398,0.00513821,2919.4,2919.1,3.503]
[1763574636600,0.00513821,2919.4,2919.3,3.2078]
[1763574637005,3.2078,2920.4,2919.3,3.2078]
[1763574637193,3.2078,2920.4,2919.7,3.2078]
[1763574637388,3.21189515,2920.4,2919.7,3.2078]
[1763574637604,0.00409515,2920.4,2919.7,3.2078]
[1763574637801,0.00409515,2920.4,2919.4,3.2078]
[1763574638099,0.00513821,2920.2,2919.4,3.2078]
[1763574638297,3.21293821,2920.2,2919.2,0.4883]
[1763574638505,3.21293821,2920.2,2919.6,3.2078]
[1763574638703,0.00513821,2920.2,2919.6,3.2078]
[1763574639000,3.2078,2920.1,2919.3,3.2078]
[1763574639804,3.821e-05,2920.2,2920.0,1.4292]
[1763574640304,3.821e-05,2920.2,2919.6,3.0751047]
[1763574640305,3.821e-05,2920.2,2919.6,3.2078]
[1763574640507,3.20783821,2920.2,2919.6,3.2078]
[1763574640700,3.821e-05,2920.2,2919.6,3.2078]
[1763574641000,3.20783821,2920.2,2919.6,3.2078]
[1763574641506,3.821e-05,2920.2,2919.6,3.2078]
[1763574641692,3.821e-05,2920.2,2920.1,3.2078]
[1763574642395,3.821e-05,2920.2,2919.9,3.2078]
[1763574643396,3.821e-05,2920.2,2919.6,3.2078]
[1763574644311,3.821e-05,2920.2,2919.9,3.2078]
[1763574645618,3.821e-05,2920.2,2919.2,3.2078]
[1763574645619,3.2078,2920.1,2919.2,3.2078]
[1763574645907,0.55525821,2920.2,2918.9,3.21070334]
[1763574645908,0.55527,2919.9,2918.9,3.21070334]
[1763574646307,0.55527,2919.9,2919.2,3.2078]
[1763574646707,4.6842,2920.0,2919.2,3.2078]
[1763574646914,3.2078,2920.0,2919.5,3.2078]
[1763574647111,3.2078,2919.7,2919.1,3.2078]
[1763574647610,0.55527,2919.9,2919.1,3.2078]
[1763574647812,0.55527,2919.9,2919.4,3.2078]
[1763574648112,0.55527,2919.9,2919.3,3.2078]
[1763574648515,0.55527,2919.9,2919.6,3.2078]
[1763574649714,0.55527,2919.9,2919.5,3.2078]
[1763574649912,3.76307,2919.9,2919.2,3.2078]
[1763574650808,1.4764,2919.2,2918.9,3.21070334]
[1763574651010,0.55544,2919.1,2918.9,0.00290334]
[1763574651211,4.6842,2919.2,2918.6,0.00513821]
[1763574651411,3.2078,2918.9,2918.6,0.00513821]
[1763574651814,0.5555,2918.7,2918.6,0.00513821]
[1763574652215,6.5555,2918.7,2918.6,0.00851366]
[1763574652718,0.5555,2918.7,2918.6,0.00851366]
[1763574652913,3.2078,2918.9,2918.6,0.00851366]
[1763574653113,3.2078,2919.3,2918.8,3.2078]
[1763574653319,0.55538,2919.4,2918.8,3.2078]
[1763574653524,3.76318,2919.4,2918.6,0.00851366]
[1763574653812,3.2078,2919.1,2918.6,0.00851366]
[1763574654118,0.55545,2919.0,2918.6,0.00851366]
[1763574654326,3.2078,2918.8,2918.6,0.00851366]
[1763574655014,5.58802462,2918.8,2918.6,0.00851366]
[1763574656019,3.2078,2918.8,2918.6,0.00851366]
[1763574656207,0.55538,2919.3,2918.6,0.00851366]
[1763574657320,1.4764,2919.2,2918.6,0.00851366]
[1763574658813,2.03182,2919.2,2918.6,0.00851366]
[1763574659917,2.03182,2919.2,2918.8,3.2078]
[1763574660117,3.2078,2919.4,2918.8,3.2078]
[1763574660420,3.2078,2919.8,2919.0,4.3488]
[1763574661118,3.2078,2919.8,2919.3,3.2078]
[1763574661321,3.2078,2919.8,2919.0,1.141]
[1763574661322,3.821e-05,2920.2,2919.7,4.637]
[1763574662324,3.821e-05,2920.2,2919.8,3.2078]
[1763574662711,3.821e-05,2920.2,2919.1,3.2078]
[1763574662712,3.2078,2919.9,2919.1,3.2078]
[1763574662917,3.20783821,2920.2,2919.5,3.2078]
[1763574663317,3.2078,2919.6,2919.0,1.141]
[1763574663619,3.2078,2919.6,2919.0,3.2078]
[1763574663819,3.2078,2919.6,2918.7,3.2078]
[1763574664214,3.2078,2919.6,2919.0,3.2078]
[1763574664419,2.38026283,2920.2,2919.0,3.2078]
[1763574664420,3.20783821,2920.2,2919.3,3.2078]
[1763574664617,3.821e-05,2920.2,2919.7,1.4282]
[1763574665212,3.821e-05,2920.2,2920.1,5.58802462]
[1763574665423,3.2078,2921.2,2920.1,5.58802462]
[1763574665619,3.2078,2921.2,2920.7,2.38022462]
[1763574665817,3.2078,2921.2,2920.5,3.2078]
[1763574666021,3.2078,2921.2,2920.1,3.2078]
[1763574666022,3.2078,2921.1,2920.1,3.2078]
[1763574666219,4.6228,2920.8,2919.8,3.2078]
[1763574666425,3.2078,2920.4,2920.0,0.00513821]
[1763574667719,3.2078,2920.1,2920.0,0.00513821]
[1763574667921,0.7773,2920.0,2918.8,3.2078]
[1763574668228,3.2078,2919.1,2918.5,3.2078]
[1763574668420,3.2078,2918.8,2918.1,3.2078]
[1763574668615,3.2078,2918.8,2917.9,3.2078]
[1763574668815,3.2078,2918.2,2917.2,3.2078]
[1763574669019,3.2078,2917.9,2917.4,0.00513821]
[1763574669723,0.00513821,2918.0,2917.4,0.00513821]
[1763574669919,3.21293821,2918.0,2917.4,0.00513821]
[1763574670314,0.00513821,2918.0,2917.4,0.00513821]
[1763574670526,3.21293821,2918.0,2917.4,0.00513821]
[1763574671124,5.17851,2917.6,2916.0,4.636]
[1763574671317,3.2078,2917.1,2916.0,1.4282]
[1763574671521,3.2078,2917.1,2915.7,3.2078]
[1763574671522,3.2078,2916.5,2915.7,3.2078]
[1763574671718,4.6228,2916.8,2915.7,3.2078]
[1763574671922,3.2078,2916.5,2915.7,3.2078]
[1763574672228,0.00513821,2916.4,2916.3,3.2078]
[1763574672425,3.2078,2917.1,2916.3,3.2078]
[1763574672721,3.2078,2918.1,2916.9,3.2078]
[1763574673027,3.2078,2918.1,2917.0,3.2078]
[1763574673325,3.2078,2918.1,2917.3,3.2078]
[1763574673530,3.2078,2918.8,2917.6,4.636]
[1763574673825,3.2078,2919.8,2919.2,1.4282]
[1763574674020,3.2078,2920.1,2919.4,3.2078]
[1763574674421,3.2078,2920.9,2920.0,4.636]
[1763574674629,0.00513821,2920.7,2920.2,0.00513821]
[1763574674825,0.00513821,2920.7,2920.4,3.2078]
[1763574675025,0.00513821,2920.7,2920.2,3.49713821]
[1763574675224,0.00513821,2920.7,2920.6,3.2078]
[1763574675525,0.00513821,2920.7,2920.2,0.00513821]
[1763574675526,3.821e-05,2920.7,2920.2,0.00513821]
[1763574675727,3.821e-05,2920.7,2920.0,0.00405329]
[1763574675728,3.2078,2920.3,2920.0,0.00405329]
[1763574676227,3.821e-05,2920.7,2920.0,0.00405329]
[1763574676228,3.2078,2920.6,2920.0,0.00405329]
[1763574676424,3.2078,2920.3,2920.0,0.00405329]
[1763574676632,3.2078,2920.3,2918.9,3.2078]
[1763574676821,0.55524,2920.1,2919.9,3.821e-05]
[1763574677019,3.821e-05,2920.7,2919.9,3.20783821]
[1763574677226,3.821e-05,2920.7,2920.3,3.2078]
[1763574677625,3.821e-05,2920.7,2920.3,3.21090287]
[1763574678027,3.821e-05,2920.7,2920.6,3.2078]
[1763574678328,3.2078,2921.8,2920.6,3.2078]
[1763574678534,3.2078,2921.8,2921.1,3.2078]
[1763574678733,5.6326385,2921.7,2921.6,6.92040116]
[1763574679029,5.6326385,2921.7,2921.6,3.2078]
[1763574679227,1.415,2923.2,2921.6,9.2078]
[1763574679425,1.415,2924.1,2923.1,3.71260116]
[1763574679625,1.415,2924.1,2923.4,3.2078]
[1763574679828,12.32924821,2923.6,2923.4,3.2078]
[1763574680426,12.33313264,2923.6,2923.4,3.21109415]
[1763574681734,12.33313264,2923.6,2923.5,4.50547048]
[1763574682120,12.3214,2924.2,2923.5,4.50547048]
[1763574682322,4.6228,2925.9,2924.1,7.47487116]
[1763574682528,3.2078,2926.7,2925.4,3.71260116]
[1763574682724,3.2078,2927.1,2926.1,3.2078]
[1763574682927,4.6228,2926.8,2925.8,3.2078]
[1763574683124,4.83829489,2926.8,2925.8,0.00338594]
[1763574683331,4.6228,2926.0,2925.0,3.2078]
[1763574683634,3.2078,2925.4,2924.7,3.2078]
[1763574683829,3.2078,2925.4,2924.1,3.71260116]
[1763574683830,4.6228,2925.0,2924.1,3.2078]
[1763574684231,4.83504462,2925.0,2924.5,3.2078]
[1763574684431,4.83504462,2925.0,2924.1,3.71260116]
[1763574684432,3.21292908,2924.8,2924.3,0.00512908]
[1763574684733,3.2078,2924.4,2924.3,0.00512908]
[1763574685031,0.0026793,2924.4,2924.3,0.00512908]
[1763574685222,3.42272392,2924.4,2924.3,0.00512908]
[1763574685524,6.63052392,2924.4,2924.3,0.00512908]
[1763574685926,12.63052392,2924.4,2924.1,0.00269446]
[1763574686231,6.63052392,2924.4,2924.1,0.00269446]
[1763574686536,3.42004462,2924.3,2924.1,0.00269446]
[1763574686835,0.0026793,2924.4,2924.1,0.00269446]
[1763574686836,3.42272392,2924.4,2924.1,0.00269446]
[1763574687234,3.42004462,2924.3,2924.1,0.00269446]
[1763574687432,0.0026793,2924.4,2924.1,0.00269446]
[1763574687632,0.0026793,2924.4,2923.9,0.00512908]
[1763574687633,1.485,2924.0,2923.9,0.00512908]
[1763574687935,4.90504462,2924.0,2923.5,3.2078]
[1763574688235,0.0026793,2924.4,2923.8,3.2078]
[1763574688628,3.42272392,2924.4,2923.8,0.00346824]
[1763574688939,4.6928,2924.0,2923.5,3.2078]
[1763574689332,3.42004462,2923.9,2923.2,3.2078]
[1763574689630,4.90504462,2924.0,2923.2,3.2078]
[1763574689842,4.90504462,2924.0,2922.9,15.1147]
[1763574689843,3.42004462,2924.0,2923.9,3.2078]
[1763574690025,0.0026793,2924.4,2923.9,3.21094875]
[1763574690224,1.485,2924.1,2923.9,0.00314875]
[1763574690428,4.6928,2924.1,2923.3,3.2078]
[1763574690837,1.485,2923.2,2922.9,15.5345]
[1763574691035,4.6928,2923.2,2922.9,12.3267]
[1763574691234,3.42004462,2923.0,2922.9,12.3267]
[1763574691435,3.42004462,2923.0,2922.0,3.2078]
[1763574691741,3.42004462,2922.3,2921.3,3.2078]
[1763574691935,3.2078,2922.2,2921.3,3.2078]
[1763574692332,3.42004462,2921.9,2921.3,3.2078]
[1763574692532,0.00262682,2921.9,2921.7,3.2078]
[1763574692838,3.42267144,2921.9,2921.7,3.2078]
[1763574693034,0.00262682,2921.9,2921.7,3.2078]
[1763574693236,3.42267144,2921.9,2921.7,3.2078]
[1763574693532,3.42267144,2921.9,2921.4,3.2078]
[1763574693736,3.42004462,2921.8,2921.4,3.2078]
[1763574693939,0.00262682,2921.9,2921.4,3.2078]
[1763574694539,0.00262682,2921.9,2921.7,3.2078]
[1763574694935,3.42267144,2921.9,2921.3,3.21143608]
[1763574695440,3.42004462,2921.8,2921.3,3.21143608]
[1763574695935,3.42004462,2921.8,2918.5,15.10182898]
[1763574695936,8.04914462,2921.4,2920.7,3.2078]
[1763574696132,8.04914462,2921.4,2919.6,5.38035878]
[1763574696133,3.2078,2920.9,2920.2,3.2078]
[1763574696535,3.42004462,2920.7,2919.9,15.54716]
[1763574696745,3.42004462,2920.5,2919.9,15.54716]
[1763574696933,3.42004462,2920.5,2919.9,15.55127868]
[1763574697240,3.42004462,2920.5,2919.9,12.34347868]
[1763574697433,3.42004462,2920.3,2920.2,3.2078]
[1763574697741,3.2078,2920.9,2920.2,3.2078]
[1763574698036,6.62784462,2920.9,2920.2,3.2078]
[1763574698240,3.42004462,2920.8,2920.5,3.2078]
[1763574698441,0.00512908,2921.3,2920.2,3.2078]
[1763574698442,3.2078,2920.9,2920.2,3.2078]
[1763574698941,3.42004462,2920.7,2920.2,3.2078]
[1763574699238,3.2078,2920.5,2919.9,12.34347868]
[1763574699631,3.42004462,2920.3,2919.9,12.34347868]
[1763574701338,3.42004462,2920.0,2919.9,12.01116724]
[1763574701542,3.2078,2920.1,2919.9,12.01116724]
[1763574701743,3.42004462,2920.0,2919.9,12.01116724]
[1763574701939,3.42004462,2920.2,2919.9,15.21896724]
[1763574702145,3.42004462,2920.5,2919.9,15.21896724]
[1763574702344,3.42004462,2920.3,2919.9,15.21896724]
[1763574702543,3.2078,2920.6,2919.9,15.21896724]
[1763574702844,3.42004462,2920.4,2919.9,15.21896724]
[1763574703044,3.2078,2920.6,2919.9,15.21896724]
[1763574703541,3.42004462,2920.7,2920.2,3.2078]
[1763574703737,3.2078,2920.9,2920.2,3.2078]
[1763574703937,6.62784462,2920.9,2920.2,3.2078]
[1763574704344,3.42004462,2920.7,2920.2,3.2078]
[1763574704646,1.4213,2920.8,2920.0,3.2078]
[1763574704844,3.2078,2920.6,2919.9,12.01116724]
[1763574705045,7.18291462,2921.0,2920.4,3.2078]
[1763574705544,3.97511462,2921.0,2920.4,3.2078]
[1763574706146,3.21292908,2921.3,2920.4,3.2078]
[1763574706334,3.21292908,2921.3,2919.9,12.01116724]
[1763574706335,0.00512908,2921.3,2920.7,3.2078]
[1763574706535,0.00512908,2921.3,2920.4,3.2078]
[1763574706743,3.2078,2921.1,2920.4,3.2078]
[1763574707350,3.42004462,2921.2,2920.8,3.2078]
[1763574707647,0.00512908,2921.3,2920.8,3.2078]
[1763574708137,3.4251737,2921.3,2920.8,3.2078]
[1763574708647,3.42004462,2920.9,2920.4,3.2078]
[1763574708837,3.21292908,2921.3,2920.4,3.2078]
[1763574708838,6.6329737,2921.3,2920.4,3.2078]
[1763574709947,4.6291,2920.8,2920.1,3.2078]
[1763574710145,1.4213,2920.8,2920.1,3.2078]
[1763574710353,3.42004462,2920.5,2920.1,3.2078]
[1763574710551,3.42004462,2920.4,2920.1,3.2078]